fUSD/lending_fUSD_20260522
["ID","MTS","AMOUNT","RATE_DAILY","PERIOD"]
[422807840,1779433832000,-500.0,0.00013698,2]
[422807842,1779433832000,-500.0,0.00013698,2]
[422807844,1779433832000,-500.0,0.00013698,2]
[422807836,1779433832000,-613.21,0.00013698,2]
[422807841,1779433832000,-500.0,0.00013698,2]
[422807846,1779433832000,-500.0,0.00013698,2]
[422807845,1779433832000,-500.0,0.00013698,2]
[422807847,1779433832000,-500.0,0.00013698,2]
[422807848,1779433832000,-500.0,0.00013698,2]
[422807852,1779433832000,-500.0,0.00013698,2]
[422807851,1779433832000,-500.0,0.00013698,2]
[422807849,1779433832000,-500.0,0.00013698,2]
[422807843,1779433832000,-500.0,0.00013698,2]
[422807850,1779433832000,-500.0,0.00013698,2]
[422807854,1779433832000,-500.0,0.00013698,2]
[422807908,1779433833000,-500.0,0.0001373,2]
[422807916,1779433833000,-500.0,0.0001373,2]
[422807919,1779433833000,-500.0,0.0001373,2]
[422807913,1779433833000,-500.0,0.0001373,2]
[422807914,1779433833000,-500.0,0.0001373,2]
[422807910,1779433833000,-500.0,0.0001373,2]
[422807915,1779433833000,-500.0,0.0001373,2]
[422807912,1779433833000,-500.0,0.0001373,2]
[422807909,1779433833000,-500.0,0.0001373,2]
[422807918,1779433833000,-176.64286346,0.0001373,2]
[422807911,1779433833000,-500.0,0.0001373,2]
[422807917,1779433833000,-300.0,0.0001373,2]
[422807930,1779433833000,-500.0,0.0001373,2]
[422807925,1779433833000,-500.0,0.0001373,2]
[422807924,1779433833000,-500.0,0.0001373,2]
[422807921,1779433833000,-500.0,0.0001373,2]
[422807922,1779433833000,-500.0,0.0001373,2]
[422807923,1779433833000,-500.0,0.0001373,2]
[422807932,1779433833000,-500.0,0.0001373,2]
[422807926,1779433833000,-500.0,0.0001373,2]
[422807927,1779433833000,-450.93895543,0.0001373,2]
[422807928,1779433833000,-478.9329186,0.0001373,2]
[422807929,1779433833000,-500.0,0.0001373,2]
[422807931,1779433833000,-500.0,0.0001373,2]
[422807907,1779433833000,-500.0,0.0001373,2]
[422807920,1779433833000,-500.0,0.0001373,2]
[422807906,1779433833000,-500.0,0.0001373,2]
[422807883,1779433833000,-500.0,0.0001373,2]
[422807904,1779433833000,-500.0,0.0001373,2]
[422807935,1779433833000,-500.0,0.0001373,2]
[422807879,1779433833000,-500.0,0.0001373,2]
[422807880,1779433833000,-500.0,0.0001373,2]
[422807881,1779433833000,-500.0,0.0001373,2]
[422807882,1779433833000,-500.0,0.0001373,2]
[422807884,1779433833000,-500.0,0.0001373,2]
[422807885,1779433833000,-500.0,0.0001373,2]
[422807887,1779433833000,-500.0,0.0001373,2]
[422807886,1779433833000,-500.0,0.0001373,2]
[422807890,1779433833000,-500.0,0.0001373,2]
[422807888,1779433833000,-500.0,0.0001373,2]
[422807889,1779433833000,-450.0,0.0001373,2]
[422807891,1779433833000,-500.0,0.0001373,2]
[422807892,1779433833000,-500.0,0.0001373,2]
[422807893,1779433833000,-500.0,0.0001373,2]
[422807896,1779433833000,-500.0,0.0001373,2]
[422807895,1779433833000,-500.0,0.0001373,2]
[422807894,1779433833000,-500.0,0.0001373,2]
[422807897,1779433833000,-500.0,0.0001373,2]
[422807898,1779433833000,-500.0,0.0001373,2]
[422807899,1779433833000,-500.0,0.0001373,2]
[422807901,1779433833000,-500.0,0.0001373,2]
[422807900,1779433833000,-503.73981277,0.0001373,2]
[422807905,1779433833000,-500.0,0.0001373,2]
[422807902,1779433833000,-500.0,0.0001373,2]
[422807903,1779433833000,-500.0,0.0001373,2]
[422807933,1779433833000,-500.0,0.0001373,2]
[422807985,1779433833000,-588.56,0.0001373,2]
[422807934,1779433833000,-500.0,0.0001373,2]
[422807967,1779433833000,-579.48,0.0001373,2]
[422807969,1779433833000,-579.48,0.0001373,2]
[422807968,1779433833000,-579.48,0.0001373,2]
[422807970,1779433833000,-579.48,0.0001373,2]
[422807972,1779433833000,-500.0,0.0001373,2]
[422807975,1779433833000,-500.0,0.0001373,2]
[422807974,1779433833000,-527.2240957,0.0001373,2]
[422807971,1779433833000,-579.48,0.0001373,2]
[422807978,1779433833000,-588.56,0.0001373,2]
[422807979,1779433833000,-588.56,0.0001373,2]
[422807976,1779433833000,-588.56,0.0001373,2]
[422807977,1779433833000,-588.56,0.0001373,2]
[422807980,1779433833000,-588.56,0.0001373,2]
[422807981,1779433833000,-588.56,0.0001373,2]
[422807982,1779433833000,-588.56,0.0001373,2]
[422807984,1779433833000,-588.56,0.0001373,2]
[422807986,1779433833000,-500.0,0.0001373,2]
[422807983,1779433833000,-588.56,0.0001373,2]
[422807988,1779433833000,-500.0,0.0001373,2]
[422807991,1779433833000,-500.0,0.0001373,2]
[422807987,1779433833000,-500.0,0.0001373,2]
[422807989,1779433833000,-500.0,0.0001373,2]
[422807992,1779433833000,-500.0,0.0001373,2]
[422807990,1779433833000,-500.0,0.0001373,2]
[422807936,1779433833000,-500.0,0.0001373,2]
[422807966,1779433833000,-579.48,0.0001373,2]
[422807965,1779433833000,-579.48,0.0001373,2]
[422807973,1779433833000,-500.0,0.0001373,2]
[422807962,1779433833000,-579.48,0.0001373,2]
[422807937,1779433833000,-500.0,0.0001373,2]
[422807939,1779433833000,-500.0,0.0001373,2]
[422807942,1779433833000,-300.0,0.0001373,2]
[422807940,1779433833000,-500.0,0.0001373,2]
[422807941,1779433833000,-500.0,0.0001373,2]
[422807943,1779433833000,-500.0,0.0001373,2]
[422807961,1779433833000,-500.0,0.0001373,2]
[422807944,1779433833000,-500.0,0.0001373,2]
[422807947,1779433833000,-400.63127979,0.0001373,2]
[422807946,1779433833000,-500.0,0.0001373,2]
[422807948,1779433833000,-500.0,0.0001373,2]
[422807945,1779433833000,-500.0,0.0001373,2]
[422807950,1779433833000,-500.0,0.0001373,2]
[422807938,1779433833000,-500.0,0.0001373,2]
[422807951,1779433833000,-205.25819266,0.0001373,2]
[422807949,1779433833000,-500.0,0.0001373,2]
[422807964,1779433833000,-579.48,0.0001373,2]
[422807958,1779433833000,-500.0,0.0001373,2]
[422807957,1779433833000,-500.0,0.0001373,2]
[422807960,1779433833000,-500.0,0.0001373,2]
[422807959,1779433833000,-500.0,0.0001373,2]
[422807963,1779433833000,-579.48,0.0001373,2]
[422807952,1779433833000,-500.0,0.0001373,2]
[422807953,1779433833000,-500.0,0.0001373,2]
[422807955,1779433833000,-500.0,0.0001373,2]
[422807954,1779433833000,-500.0,0.0001373,2]
[422807956,1779433833000,-500.0,0.0001373,2]
[422808000,1779433834000,-500.0,0.0001373,2]
[422808005,1779433834000,-500.0,0.0001373,2]
[422808004,1779433834000,-500.0,0.0001373,2]
[422808003,1779433834000,-500.0,0.0001373,2]
[422808002,1779433834000,-500.0,0.0001373,2]
[422808006,1779433834000,-500.0,0.0001373,2]
[422807999,1779433834000,-500.0,0.0001373,2]
[422807995,1779433834000,-150.06581077,0.0001373,2]
[422807998,1779433834000,-500.0,0.0001373,2]
[422807997,1779433834000,-500.0,0.0001373,2]
[422807996,1779433834000,-350.56333019,0.0001373,2]
[422807994,1779433834000,-500.0,0.0001373,2]
[422807993,1779433834000,-500.0,0.0001373,2]
[422808007,1779433834000,-500.0,0.0001373,2]
[422808001,1779433834000,-500.0,0.0001373,2]
[422808008,1779433834000,-500.0,0.0001373,2]
[422808025,1779433834000,-71672.34224643,0.00013731,2]
[422808009,1779433834000,-500.0,0.0001373,2]
[422808010,1779433834000,-500.0,0.0001373,2]
[422808026,1779433834000,-159634.35710901,0.00013731,2]
[422808023,1779433834000,-510.74292638,0.0001373,2]
[422808022,1779433834000,-500.0,0.0001373,2]
[422808024,1779433834000,-118377.54819824,0.00013731,2]
[422808020,1779433834000,-508.99758767,0.0001373,2]
[422808017,1779433834000,-500.0,0.0001373,2]
[422808021,1779433834000,-500.0,0.0001373,2]
[422808018,1779433834000,-500.0,0.0001373,2]
[422808014,1779433834000,-500.0,0.0001373,2]
[422808016,1779433834000,-500.0,0.0001373,2]
[422808015,1779433834000,-500.0,0.0001373,2]
[422808013,1779433834000,-500.0,0.0001373,2]
[422808012,1779433834000,-500.0,0.0001373,2]
[422808011,1779433834000,-500.0,0.0001373,2]
[422808019,1779433834000,-500.0,0.0001373,2]
[422808035,1779433838000,-630.42701043,0.00013731,2]
[422808030,1779433838000,-357.03368088,0.00013731,2]
[422808031,1779433838000,-805.6,0.00013731,2]
[422808032,1779433838000,-20755.76943862,0.00013731,2]
[422808033,1779433838000,-1010.82602681,0.00013731,2]
[422808034,1779433838000,-374.94616337,0.00013731,2]
[422808039,1779433838000,-383.736,0.00013731,2]
[422808036,1779433838000,-1614.35702247,0.00013731,2]
[422808038,1779433838000,-258.6,0.00013731,2]
[422808041,1779433838000,-40169.45996109,0.00013731,2]
[422808040,1779433838000,-909.41682512,0.00013731,2]
[422808042,1779433838000,-45350.0,0.00013731,2]
[422808037,1779433838000,-401.79653233,0.00013731,2]
[422808054,1779433841000,-256.41078936,0.00012599,2]
[422808053,1779433841000,-776.22747413,0.00012599,2]
[422808056,1779433841000,-335934.63331257,0.00013731,2]
[422808055,1779433841000,-500.0,0.0001373,2]
[422808059,1779433841000,-12489.66485201,0.00013731,2]
[422808058,1779433841000,-534.0,0.00013731,2]
[422808061,1779433841000,-1500.15366283,0.00013731,2]
[422808060,1779433841000,-1101.23068818,0.00013731,2]
[422808062,1779433841000,-341.000001,0.00013731,2]
[422808057,1779433841000,-1198.04289802,0.00013731,2]
[422808072,1779433843000,-2800.96564343,0.00013731,2]
[422808074,1779433843000,-457.68,0.00013731,2]
[422808076,1779433843000,-3098.80925451,0.00013731,2]
[422808073,1779433843000,-2852.64666,0.00013731,2]
[422808075,1779433843000,-419.06103369,0.00013731,2]
[422808147,1779433846000,-1229.86,0.00013731,2]
[422808146,1779433846000,-3402.44500968,0.00013731,2]
[422808145,1779433846000,-3594.95959537,0.00013731,2]
[422808144,1779433846000,-1500.01480014,0.00013731,2]
[422808143,1779433846000,-1127.99615857,0.00013731,2]
[422808142,1779433846000,-1557.76467657,0.00013731,2]
[422808156,1779433915000,-280.31,0.00013018,2]
[422808223,1779434211000,-171.15,0.00010244,2]
[422808225,1779434351000,139.05,6.515e-05,2]
[422808224,1779434351000,281.09,6.515e-05,2]
[422808228,1779434351000,420.14,7.503e-05,2]
[422808227,1779434351000,420.14,7.174e-05,2]
[422808229,1779434351000,420.14,7.833e-05,2]
[422808226,1779434351000,420.14,6.844e-05,2]
[422808233,1779434352000,420.14,9.151e-05,2]
[422808232,1779434352000,420.14,8.821e-05,2]
[422808231,1779434352000,420.14,8.492e-05,2]
[422808230,1779434352000,420.14,8.162e-05,2]
[422808235,1779434353000,420.14,9.81e-05,2]
[422808234,1779434353000,420.14,9.48e-05,2]
[422808237,1779434353000,420.14,0.00010468,2]
[422808238,1779434353000,420.14,0.00010798,2]
[422808236,1779434353000,420.14,0.00010139,2]
[422808241,1779434354000,420.14,0.00011786,2]
[422808240,1779434354000,420.14,0.00011457,2]
[422808239,1779434354000,420.14,0.00011127,2]
[422808249,1779434540000,72967.56,0.000107,2]
[422808251,1779434565000,-10000.0,0.000107,2]
[422808252,1779434576000,-7000.0,0.000107,2]
[422808257,1779434652000,-9700.0,0.000107,2]
[422808256,1779434652000,-300.0,0.00010699,2]
[422808261,1779434709000,-302.71,0.000107,2]
[422808272,1779434794000,152.0,0.00011416,4]
[422808273,1779434794000,152.0,0.0001103,3]
[422808284,1779434967000,-583.8,0.000107,2]
[422808303,1779435032000,-152.0,0.00012188,6]
[422808294,1779435032000,-563.8625775,0.000107,2]
[422808295,1779435032000,-642.29822088,0.000107,2]
[422808296,1779435032000,-305.20490765,0.000107,2]
[422808297,1779435032000,-851.07921909,0.000107,2]
[422808298,1779435032000,-366.17109667,0.0001177,2]
[422808299,1779435032000,-301.19063984,0.0001177,2]
[422808300,1779435032000,-152.0,0.00011802,5]
[422808301,1779435032000,-5530.0,0.000121,3]
[422808302,1779435032000,-420.14,0.00012116,2]
[422808319,1779435032000,-1600.0,0.00012575,2]
[422808307,1779435032000,-1200.0,0.00012451,2]
[422808304,1779435032000,-420.14,0.00012445,2]
[422808323,1779435032000,-874.59964105,0.00012575,2]
[422808316,1779435032000,-2473.18201437,0.00012575,2]
[422808309,1779435032000,-345.03,0.000125,2]
[422808321,1779435032000,-665.72995843,0.00012575,2]
[422808311,1779435032000,-2301.56058674,0.00012575,2]
[422808306,1779435032000,-300.0,0.00012451,2]
[422808310,1779435032000,-152.0,0.00012575,7]
[422808305,1779435032000,-300.0,0.00012451,2]
[422808308,1779435032000,-7027.32,0.00012452,2]
[422808372,1779435038000,-420.14,0.00012775,2]
[422808377,1779435038000,-152.0,0.00013347,9]
[422808373,1779435038000,-165.44,0.00012855,2]
[422808371,1779435038000,-208.7374384,0.00012725,2]
[422808374,1779435038000,-153.72,0.00012957,2]
[422808367,1779435038000,-150.0,0.00012699,2]
[422808369,1779435038000,-150.0,0.00012699,2]
[422808363,1779435038000,-5530.0,0.000126,5]
[422808366,1779435038000,-259.73,0.0001263,2]
[422808368,1779435038000,-230.50327238,0.00012699,2]
[422808375,1779435038000,-152.0,0.00012961,8]
[422808361,1779435038000,-3442.91779941,0.00012575,2]
[422808362,1779435038000,-500.0,0.00012599,2]
[422808376,1779435038000,-1500.01480014,0.00013,15]
[422808370,1779435038000,-150.0,0.00012699,2]
[422808380,1779435038000,-150.0,0.00013497,2]
[422808395,1779435038000,-500.0,0.00013531,2]
[422808378,1779435038000,-150.0,0.00013404,2]
[422808387,1779435038000,-500.0,0.00013531,2]
[422808393,1779435038000,-500.0,0.00013531,2]
[422808394,1779435038000,-500.0,0.00013531,2]
[422808390,1779435038000,-500.0,0.00013531,2]
[422808391,1779435038000,-500.0,0.00013531,2]
[422808392,1779435038000,-500.0,0.00013531,2]
[422808388,1779435038000,-500.0,0.00013531,2]
[422808396,1779435038000,-441.20965035,0.00013531,2]
[422808386,1779435038000,-500.0,0.00013531,2]
[422808384,1779435038000,-555.87595971,0.00013531,2]
[422808385,1779435038000,-500.0,0.00013531,2]
[422808383,1779435038000,-478.72683585,0.00013522,2]
[422808382,1779435038000,-385.55233418,0.000135,2]
[422808381,1779435038000,-218.1196904,0.00013498,2]
[422808389,1779435038000,-500.0,0.00013531,2]
[422808379,1779435038000,-5000.0,0.00013432,2]
[422808418,1779435042000,-500.0,0.00013531,2]
[422808420,1779435042000,-500.0,0.00013531,2]
[422808426,1779435042000,-500.0,0.00013531,2]
[422808422,1779435042000,-500.0,0.00013531,2]
[422808424,1779435042000,-500.0,0.00013531,2]
[422808425,1779435042000,-500.0,0.00013531,2]
[422808423,1779435042000,-500.0,0.00013531,2]
[422808421,1779435042000,-500.0,0.00013531,2]
[422808429,1779435042000,-500.0,0.00013531,2]
[422808428,1779435042000,-500.0,0.00013531,2]
[422808417,1779435042000,-500.0,0.00013531,2]
[422808430,1779435042000,-500.0,0.00013531,2]
[422808427,1779435042000,-500.0,0.00013531,2]
[422808419,1779435042000,-500.0,0.00013531,2]
[422808406,1779435042000,-500.0,0.00013531,2]
[422808415,1779435042000,-500.0,0.00013531,2]
[422808413,1779435042000,-500.0,0.00013531,2]
[422808411,1779435042000,-500.0,0.00013531,2]
[422808410,1779435042000,-500.0,0.00013531,2]
[422808412,1779435042000,-500.0,0.00013531,2]
[422808409,1779435042000,-500.0,0.00013531,2]
[422808407,1779435042000,-500.0,0.00013531,2]
[422808404,1779435042000,-500.0,0.00013531,2]
[422808403,1779435042000,-500.0,0.00013531,2]
[422808405,1779435042000,-500.0,0.00013531,2]
[422808401,1779435042000,-7264.82930524,0.00013469,2]
[422808402,1779435042000,-58.79034965,0.00013531,2]
[422808398,1779435042000,-1414.65330805,0.00013469,2]
[422808431,1779435042000,-500.0,0.00013531,2]
[422808414,1779435042000,-500.0,0.00013531,2]
[422808436,1779435042000,-500.0,0.00013531,2]
[422808460,1779435042000,-500.0,0.00013531,2]
[422808439,1779435042000,-500.0,0.00013531,2]
[422808465,1779435042000,-500.0,0.00013531,2]
[422808433,1779435042000,-500.0,0.00013531,2]
[422808464,1779435042000,-557.57621364,0.00013531,2]
[422808463,1779435042000,-500.0,0.00013531,2]
[422808462,1779435042000,-500.0,0.00013531,2]
[422808457,1779435042000,-500.0,0.00013531,2]
[422808459,1779435042000,-500.0,0.00013531,2]
[422808458,1779435042000,-500.0,0.00013531,2]
[422808456,1779435042000,-500.0,0.00013531,2]
[422808452,1779435042000,-500.0,0.00013531,2]
[422808449,1779435042000,-500.0,0.00013531,2]
[422808450,1779435042000,-500.0,0.00013531,2]
[422808453,1779435042000,-500.0,0.00013531,2]
[422808451,1779435042000,-500.0,0.00013531,2]
[422808446,1779435042000,-500.0,0.00013531,2]
[422808461,1779435042000,-500.0,0.00013531,2]
[422808443,1779435042000,-500.0,0.00013531,2]
[422808441,1779435042000,-500.0,0.00013531,2]
[422808448,1779435042000,-500.0,0.00013531,2]
[422808434,1779435042000,-500.0,0.00013531,2]
[422808435,1779435042000,-500.0,0.00013531,2]
[422808438,1779435042000,-500.0,0.00013531,2]
[422808432,1779435042000,-236.53986519,0.00013531,2]
[422808440,1779435042000,-500.0,0.00013531,2]
[422808437,1779435042000,-500.0,0.00013531,2]
[422808442,1779435042000,-500.0,0.00013531,2]
[422808444,1779435042000,-500.0,0.00013531,2]
[422808454,1779435042000,-500.0,0.00013531,2]
[422808447,1779435042000,-500.0,0.00013531,2]
[422808445,1779435042000,-500.0,0.00013531,2]
[422808455,1779435042000,-580.10312756,0.00013531,2]
[422808490,1779435043000,-500.0,0.00013531,2]
[422808500,1779435043000,-4794.057995,0.00013627,2]
[422808509,1779435043000,-500.0,0.00013698,2]
[422808511,1779435043000,-500.0,0.00013698,2]
[422808501,1779435043000,-2000.0,0.00013631,2]
[422808510,1779435043000,-500.0,0.00013698,2]
[422808512,1779435043000,-500.0,0.00013698,2]
[422808493,1779435043000,-281.60380507,0.00013531,2]
[422808502,1779435043000,-371.0,0.00013662,2]
[422808504,1779435043000,-538.05787571,0.00013698,2]
[422808505,1779435043000,-500.0,0.00013698,2]
[422808508,1779435043000,-500.0,0.00013698,2]
[422808506,1779435043000,-616.9808049,0.00013698,2]
[422808507,1779435043000,-500.0,0.00013698,2]
[422808514,1779435043000,-500.0,0.00013698,2]
[422808524,1779435043000,-500.0,0.00013698,2]
[422808494,1779435043000,-500.0,0.00013531,2]
[422808525,1779435043000,-500.0,0.00013698,2]
[422808503,1779435043000,-1680.0,0.00013696,2]
[422808495,1779435043000,-281.60380507,0.00013531,2]
[422808477,1779435043000,-281.60380507,0.00013531,2]
[422808491,1779435043000,-281.60380507,0.00013531,2]
[422808526,1779435043000,-500.0,0.00013698,2]
[422808466,1779435043000,-550.0,0.00013531,2]
[422808468,1779435043000,-500.0,0.00013531,2]
[422808469,1779435043000,-500.0,0.00013531,2]
[422808472,1779435043000,-500.0,0.00013531,2]
[422808479,1779435043000,-188.83885985,0.00013531,2]
[422808470,1779435043000,-500.0,0.00013531,2]
[422808467,1779435043000,-500.0,0.00013531,2]
[422808474,1779435043000,-275.43699095,0.00013531,2]
[422808471,1779435043000,-500.0,0.00013531,2]
[422808481,1779435043000,-572.89626029,0.00013531,2]
[422808483,1779435043000,-500.0,0.00013531,2]
[422808497,1779435043000,-1188015.7227,0.00013532,2]
[422808496,1779435043000,-500.0,0.00013531,2]
[422808498,1779435043000,-5589.4324,0.00013569,2]
[422808499,1779435043000,-343780.3554,0.00013598,2]
[422808485,1779435043000,-281.60380507,0.00013531,2]
[422808488,1779435043000,-500.0,0.00013531,2]
[422808489,1779435043000,-281.60380507,0.00013531,2]
[422808492,1779435043000,-500.0,0.00013531,2]
[422808528,1779435043000,-500.0,0.00013698,2]
[422808533,1779435043000,-705.63,0.00013699,2]
[422808519,1779435043000,-500.0,0.00013698,2]
[422808565,1779435043000,-151.0,0.00013699,2]
[422808557,1779435043000,-151.0,0.00013699,2]
[422808571,1779435043000,-500.0,0.00013726,2]
[422808560,1779435043000,-229.780839,0.00013699,2]
[422808572,1779435043000,-500.0,0.00013726,2]
[422808576,1779435043000,-500.0,0.00013726,2]
[422808577,1779435043000,-500.0,0.00013726,2]
[422808574,1779435043000,-500.0,0.00013726,2]
[422808579,1779435043000,-500.0,0.00013726,2]
[422808580,1779435043000,-500.0,0.00013726,2]
[422808575,1779435043000,-500.0,0.00013726,2]
[422808578,1779435043000,-500.0,0.00013726,2]
[422808581,1779435043000,-248.58448134,0.00013726,2]
[422808583,1779435043000,-712830.04425971,0.00013727,2]
[422808582,1779435043000,-300.0,0.00013726,2]
[422808585,1779435043000,-722.8955016,0.00013727,2]
[422808586,1779435043000,-709.63535141,0.00013727,2]
[422808584,1779435043000,-304.26860651,0.00013727,2]
[422808517,1779435043000,-500.0,0.00013698,2]
[422808568,1779435043000,-151.0,0.00013699,2]
[422808566,1779435043000,-151.0,0.00013699,2]
[422808550,1779435043000,-151.0,0.00013699,2]
[422808554,1779435043000,-151.0,0.00013699,2]
[422808516,1779435043000,-500.0,0.00013698,2]
[422808518,1779435043000,-500.0,0.00013698,2]
[422808523,1779435043000,-500.0,0.00013698,2]
[422808521,1779435043000,-500.0,0.00013698,2]
[422808520,1779435043000,-500.0,0.00013698,2]
[422808522,1779435043000,-500.0,0.00013698,2]
[422808529,1779435043000,-500.0,0.00013698,2]
[422808531,1779435043000,-19999.99,0.00013699,2]
[422808541,1779435043000,-150.99,0.00013699,2]
[422808532,1779435043000,-2437.89,0.00013699,2]
[422808534,1779435043000,-9999.99,0.00013699,2]
[422808547,1779435043000,-200.0,0.00013699,2]
[422808543,1779435043000,-1588.85,0.00013699,2]
[422808538,1779435043000,-5600.98,0.00013699,2]
[422808535,1779435043000,-4999.99,0.00013699,2]
[422808536,1779435043000,-9999.99,0.00013699,2]
[422808545,1779435043000,-169.95,0.00013699,2]
[422808570,1779435043000,-1030.0,0.00013726,5]
[422808563,1779435043000,-151.0,0.00013699,2]
[422808530,1779435043000,-24999.99,0.00013699,2]
[422808589,1779435044000,-7886.09314968,0.00013727,2]
[422808587,1779435044000,-2907.22467381,0.00013727,2]
[422808588,1779435044000,-5038.77507385,0.00013727,2]
[422808592,1779435047000,-3896.2896008,0.00013727,2]
[422808593,1779435047000,-2333.69078189,0.00013727,2]
[422808595,1779435047000,-346.300005,0.00013727,2]
[422808596,1779435047000,-453.28329511,0.00013727,2]
[422808594,1779435047000,-333.81577651,0.00013727,2]
[422808606,1779435155000,514.8,7.167e-05,2]
[422808605,1779435155000,514.8,6.838e-05,2]
[422808604,1779435155000,514.8,6.509e-05,2]
[422808608,1779435156000,514.8,7.825e-05,2]
[422808607,1779435156000,514.8,7.496e-05,2]
[422808610,1779435156000,514.8,8.484e-05,2]
[422808611,1779435156000,514.8,8.813e-05,2]
[422808609,1779435156000,514.8,8.155e-05,2]
[422808614,1779435157000,514.8,9.8e-05,2]
[422808613,1779435157000,514.8,9.471e-05,2]
[422808612,1779435157000,514.8,9.142e-05,2]
[422808618,1779435292000,-281.09,0.0001013,2]
[422808645,1779435503000,-500.0,0.0002289,120]
[422808648,1779435503000,-500.0,0.0002363,120]
[422808651,1779435503000,-500.0,0.0002437,120]
[422808649,1779435503000,-500.0,0.00023877,120]
[422808647,1779435503000,-500.0,0.00023384,120]
[422808643,1779435503000,-500.0,0.00022397,120]
[422808642,1779435503000,-500.0,0.00022151,120]
[422808644,1779435503000,-500.0,0.00022644,120]
[422808650,1779435503000,-500.0,0.00024123,120]
[422808646,1779435503000,-500.0,0.00023137,120]
[422808654,1779435503000,-500.0,0.0002511,120]
[422808655,1779435503000,-500.0,0.00025356,120]
[422808653,1779435503000,-500.0,0.00024863,120]
[422808658,1779435503000,-500.0,0.00026096,120]
[422808656,1779435503000,-500.0,0.00025603,120]
[422808659,1779435503000,-500.0,0.00026342,120]
[422808657,1779435503000,-500.0,0.00025849,120]
[422808660,1779435503000,-500.0,0.00026589,120]
[422808661,1779435503000,-500.0,0.00026836,120]
[422808662,1779435503000,-500.0,0.00027082,120]
[422808652,1779435503000,-500.0,0.00024616,120]
[422808664,1779435504000,-500.0,0.00027575,120]
[422808666,1779435504000,-3585431.28330872,0.00028,120]
[422808663,1779435504000,-500.0,0.00027329,120]
[422808665,1779435504000,-500.0,0.00027822,120]
[422808667,1779435504000,-500.0,0.00028068,120]
[422808669,1779435504000,-500.0,0.00028562,120]
[422808668,1779435504000,-500.0,0.00028315,120]
[422808693,1779435624000,-150.0,0.0001013,2]
[422808697,1779435646000,150.05461187,0.00025356,120]
[422808696,1779435646000,150.05461187,0.00025356,120]
[422808695,1779435646000,150.05461187,0.00025356,120]
[422808694,1779435646000,150.05461187,0.00025356,120]
[422808767,1779435958000,-150.0,0.00010129,2]
[422808768,1779435974000,231.12,6.111e-05,2]
[422808769,1779435975000,231.12,6.42e-05,2]
[422808770,1779435975000,231.12,6.729e-05,2]
[422808771,1779435975000,231.12,7.038e-05,2]
[422808773,1779435975000,231.12,7.656e-05,2]
[422808772,1779435975000,231.12,7.347e-05,2]
[422808778,1779435976000,231.12,9.2e-05,2]
[422808777,1779435976000,231.12,8.891e-05,2]
[422808776,1779435976000,231.12,8.582e-05,2]
[422808775,1779435976000,231.12,8.273e-05,2]
[422808774,1779435976000,231.12,7.965e-05,2]
[422808780,1779435977000,231.12,9.818e-05,2]